[Event "Titled Tuesday Blitz May 31 Early 2022"]
[White "Gokerkan, Cem Kaan"]
[Black "Aravindh, Chithambaram VR."]
[WhiteFideId "6336760"]
[BlackFideId "5072786"]
[WhiteElo "2382"]
[BlackElo "2561"]
[Result "0-1"]
[Round "06"]
[TimeControl "180+1"]
[Date "2022.05.31"]
[WhiteClock "0:00:04"]
[BlackClock "0:00:03"]

1. e4 {[%clk 0:03:00]}  g6 {[%clk 0:02:55]} 2. d4 {[%clk 0:03:00]}  Bg7 {[%clk 0:02:56]} 3. Nc3 {[%clk 0:03:01]}  d5 {[%clk 0:02:56]} 4. exd5 {[%clk 0:03:00]}  Nf6 {[%clk 0:02:56]} 5. Bc4 {[%clk 0:03:00]}  Nbd7 {[%clk 0:02:56]} 6. Nf3 {[%clk 0:02:55]}  Nb6 {[%clk 0:02:56]} 7. Bb3 {[%clk 0:02:56]}  a5 {[%clk 0:02:56]} 8. a4 {[%clk 0:02:55]}  Nfxd5 {[%clk 0:02:56]} 9. Nxd5 {[%clk 0:02:55]}  Nxd5 {[%clk 0:02:57]} 10. O-O {[%clk 0:02:55]}  O-O {[%clk 0:02:57]} 11. Re1 {[%clk 0:02:55]}  Bg4 {[%clk 0:02:57]} 12. h3 {[%clk 0:02:55]}  Bxf3 {[%clk 0:02:57]} 13. Qxf3 {[%clk 0:02:55]}  e6 {[%clk 0:02:58]} 14. c3 {[%clk 0:02:54]}  c6 {[%clk 0:02:57]} 15. g3 {[%clk 0:02:47]}  Qd7 {[%clk 0:02:55]} 16. h4 {[%clk 0:02:46]}  h5 {[%clk 0:02:55]} 17. Bg5 {[%clk 0:02:39]}  Rfe8 {[%clk 0:02:51]} 18. Re2 {[%clk 0:02:39]}  Ne7 {[%clk 0:02:30]} 19. Rae1 {[%clk 0:02:33]}  Nf5 {[%clk 0:02:30]} 20. g4 {[%clk 0:02:22]}  hxg4 {[%clk 0:02:29]} 21. Qxg4 {[%clk 0:02:23]}  b5 {[%clk 0:02:11]} 22. axb5 {[%clk 0:02:18]}  a4 {[%clk 0:02:06]} 23. bxc6 {[%clk 0:02:13]}  Qxc6 {[%clk 0:02:07]} 24. d5 {[%clk 0:01:45]}  exd5 {[%clk 0:01:51]} 25. Bxd5 {[%clk 0:01:15]}  Rxe2 {[%clk 0:01:50]} 26. Bxc6 {[%clk 0:01:15]}  Rxe1+ {[%clk 0:01:50]} 27. Kg2 {[%clk 0:01:14]}  Ra5 {[%clk 0:00:54]} 28. Be4 {[%clk 0:00:34]}  Re5 {[%clk 0:00:18]} 29. Bxf5 {[%clk 0:00:34]}  Rxf5 {[%clk 0:00:18]} 30. Qxa4 {[%clk 0:00:34]}  Re2 {[%clk 0:00:19]} 31. Be3 {[%clk 0:00:34]}  Rxb2 {[%clk 0:00:18]} 32. Qe8+ {[%clk 0:00:28]}  Kh7 {[%clk 0:00:18]} 33. c4 {[%clk 0:00:24]}  Re2 {[%clk 0:00:17]} 34. h5 {[%clk 0:00:17]}  Rfxf2+ {[%clk 0:00:12]} 35. Kg3 {[%clk 0:00:15]}  Rf5 {[%clk 0:00:11]} 36. hxg6+ {[%clk 0:00:15]}  fxg6 {[%clk 0:00:12]} 37. Qe4 {[%clk 0:00:09]}  Be5+ {[%clk 0:00:12]} 38. Kg4 {[%clk 0:00:07]}  Rf4+ {[%clk 0:00:07]} 39. Qxf4 {[%clk 0:00:06]}  Bxf4 {[%clk 0:00:07]} 40. Kxf4 {[%clk 0:00:07]}  Rc2 {[%clk 0:00:06]} 41. c5 {[%clk 0:00:08]}  Kg7 {[%clk 0:00:05]} 42. Ke4 {[%clk 0:00:04]}  Kf6 {[%clk 0:00:05]} 43. Kd5 {[%clk 0:00:04]}  Ke7 {[%clk 0:00:05]} 44. c6 {[%clk 0:00:04]}  Kd8 {[%clk 0:00:03]} 45. Bg5+ {[%clk 0:00:05]}  Kc7 {[%clk 0:00:03]} 46. Bf4+ {[%clk 0:00:05]}  Kc8 {[%clk 0:00:04]} 47. c7 {[%clk 0:00:06]}  Re2 {[%clk 0:00:04]} 48. Kd4 {[%clk 0:00:03]}  Re1 {[%clk 0:00:04]} 49. Kd5 {[%clk 0:00:04]}  Kd7 {[%clk 0:00:04]} 50. Kd4 {[%clk 0:00:03]}  Re6 {[%clk 0:00:03]} 51. Kd5 {[%clk 0:00:03]}  Rf6 {[%clk 0:00:04]} 52. Ke4 {[%clk 0:00:04]}  Rf5 {[%clk 0:00:04]} 53. Be5 {[%clk 0:00:04]}  Rh5 {[%clk 0:00:04]} 54. Bg3 {[%clk 0:00:04]}  Rh8 {[%clk 0:00:04]} 55. Be5 {[%clk 0:00:04]}  Re8 {[%clk 0:00:04]} 56. Kf4 {[%clk 0:00:04]}  Ke6 {[%clk 0:00:04]} 57. Ke4 {[%clk 0:00:02]}  Ra8 {[%clk 0:00:03]} 58. Bg3 {[%clk 0:00:02]}  Ra4+ {[%clk 0:00:03]} 59. Kf3 {[%clk 0:00:02]}  Kd7 {[%clk 0:00:04]} 60. Bf4 {[%clk 0:00:03]}  Rc4 {[%clk 0:00:04]} 61. Kg4 {[%clk 0:00:03]}  Ke6 {[%clk 0:00:04]} 62. Kg5 {[%clk 0:00:04]}  Kf7 {[%clk 0:00:04]} 63. Bg3 {[%clk 0:00:03]}  Rc5+ {[%clk 0:00:04]} 64. Kg4 {[%clk 0:00:03]}  Kf6 {[%clk 0:00:03]} 65. Bh4+ {[%clk 0:00:04]}  g5 {[%clk 0:00:03]} 66. c8=Q {[%clk 0:00:05]}  Rxc8 {[%clk 0:00:03]} 67. Bxg5+ {[%clk 0:00:06]}  Ke5 {[%clk 0:00:03]} 68. Be3 {[%clk 0:00:06]}  Ke4 {[%clk 0:00:03]} 69. Bb6 {[%clk 0:00:06]}  Rg8+ {[%clk 0:00:04]} 70. Kh3 {[%clk 0:00:06]}  Kf3 {[%clk 0:00:04]} 71. Kh2 {[%clk 0:00:06]}  Rg6 {[%clk 0:00:03]} 72. Bc5 {[%clk 0:00:06]}  Rc6 {[%clk 0:00:03]} 73. Bd4 {[%clk 0:00:05]}  Rc4 {[%clk 0:00:03]} 74. Bb6 {[%clk 0:00:06]}  Rc1 {[%clk 0:00:04]} 75. Bg1 {[%clk 0:00:05]}  Rc6 {[%clk 0:00:03]} 76. Kh1 {[%clk 0:00:05]}  Rg6 {[%clk 0:00:03]} 77. Kh2 {[%clk 0:00:04]}  Rh6# {[%clk 0:00:03]} 0-1


[Site "https://www.chess.com"]

[Event "Titled Tuesday Blitz May 31 Early 2022"]
[White "Goltsev, Dmitry"]
[Black "Chigaev, Maksim"]
[WhiteFideId "24176710"]
[BlackFideId "4108116"]
[WhiteElo "2258"]
[BlackElo "2457"]
[Result "1-0"]
[Round "06"]
[TimeControl "180+1"]
[Date "2022.05.31"]
[WhiteClock "0:00:48"]
[BlackClock "0:00:40"]

1. e4 {[%clk 0:03:00]}  e6 {[%clk 0:02:58]} 2. d4 {[%clk 0:03:00]}  d5 {[%clk 0:02:59]} 3. exd5 {[%clk 0:03:01]}  exd5 {[%clk 0:02:59]} 4. Nf3 {[%clk 0:03:01]}  Bd6 {[%clk 0:02:58]} 5. Bd3 {[%clk 0:03:02]}  Ne7 {[%clk 0:02:56]} 6. O-O {[%clk 0:02:58]}  O-O {[%clk 0:02:56]} 7. Re1 {[%clk 0:02:57]}  Nbc6 {[%clk 0:02:56]} 8. c3 {[%clk 0:02:56]}  Bf5 {[%clk 0:02:57]} 9. Bg5 {[%clk 0:02:55]}  f6 {[%clk 0:02:57]} 10. Bh4 {[%clk 0:02:54]}  Qd7 {[%clk 0:02:57]} 11. Bg3 {[%clk 0:02:52]}  Bxg3 {[%clk 0:02:57]} 12. hxg3 {[%clk 0:02:53]}  Rae8 {[%clk 0:02:57]} 13. Na3 {[%clk 0:02:51]}  a6 {[%clk 0:02:52]} 14. Nc2 {[%clk 0:02:50]}  Bxd3 {[%clk 0:02:50]} 15. Qxd3 {[%clk 0:02:49]}  Nf5 {[%clk 0:02:45]} 16. Ne3 {[%clk 0:02:38]}  Nxe3 {[%clk 0:02:37]} 17. Rxe3 {[%clk 0:02:39]}  Rxe3 {[%clk 0:02:38]} 18. Qxe3 {[%clk 0:02:38]}  Re8 {[%clk 0:02:39]} 19. Qd2 {[%clk 0:02:37]}  Re4 {[%clk 0:02:35]} 20. Re1 {[%clk 0:02:32]}  Ne7 {[%clk 0:02:33]} 21. Rxe4 {[%clk 0:02:30]}  dxe4 {[%clk 0:02:33]} 22. Ne1 {[%clk 0:02:30]}  Qe6 {[%clk 0:02:23]} 23. b3 {[%clk 0:02:28]}  b5 {[%clk 0:02:21]} 24. Nc2 {[%clk 0:02:28]}  Nf5 {[%clk 0:02:17]} 25. Ne3 {[%clk 0:02:28]}  Nd6 {[%clk 0:02:07]} 26. d5 {[%clk 0:02:24]}  Qe5 {[%clk 0:02:07]} 27. c4 {[%clk 0:02:25]}  Kf7 {[%clk 0:01:43]} 28. c5 {[%clk 0:02:18]}  Nb7 {[%clk 0:01:34]} 29. b4 {[%clk 0:02:15]}  h5 {[%clk 0:01:34]} 30. Qd1 {[%clk 0:01:55]}  g6 {[%clk 0:01:29]} 31. Qb3 {[%clk 0:01:49]}  Ke7 {[%clk 0:01:21]} 32. d6+ {[%clk 0:01:42]}  Nxd6 {[%clk 0:01:01]} 33. cxd6+ {[%clk 0:01:39]}  Qxd6 {[%clk 0:01:02]} 34. Qg8 {[%clk 0:01:39]}  f5 {[%clk 0:01:02]} 35. Nd5+ {[%clk 0:01:22]}  Kd7 {[%clk 0:01:01]} 36. Qf7+ {[%clk 0:01:13]}  Kc6 {[%clk 0:00:54]} 37. Ne7+ {[%clk 0:01:13]}  Kb7 {[%clk 0:00:54]} 38. Nxg6 {[%clk 0:01:13]}  Qxb4 {[%clk 0:00:54]} 39. Kh2 {[%clk 0:01:00]}  Qc4 {[%clk 0:00:42]} 40. Qxf5 {[%clk 0:00:51]}  Qxa2 {[%clk 0:00:42]} 41. Qxe4+ {[%clk 0:00:50]}  c6 {[%clk 0:00:42]} 42. f4 {[%clk 0:00:50]}  Qd5 {[%clk 0:00:37]} 43. Qxd5 {[%clk 0:00:47]}  cxd5 {[%clk 0:00:38]} 44. f5 {[%clk 0:00:47]}  b4 {[%clk 0:00:38]} 45. f6 {[%clk 0:00:48]}  b3 {[%clk 0:00:38]} 46. f7 {[%clk 0:00:49]}  b2 {[%clk 0:00:39]} 47. f8=Q {[%clk 0:00:49]}  b1=Q {[%clk 0:00:40]} 48. Qf7+ {[%clk 0:00:50]}  Kc6 {[%clk 0:00:40]} 49. Ne7+ {[%clk 0:00:50]}  Kd6 {[%clk 0:00:41]} 50. Nf5+ {[%clk 0:00:48]}  Ke5 {[%clk 0:00:40]} 51. Qe7+ {[%clk 0:00:48]} 1-0


[Site "https://www.chess.com"]

[Event "Titled Tuesday Blitz May 31 Early 2022"]
[White "Dronavalli, Harika"]
[Black "Salinas Herrera, Pablo"]
[WhiteFideId "5015197"]
[BlackFideId "3407128"]
[WhiteElo "2382"]
[BlackElo "2541"]
[Result "1-0"]
[Round "06"]
[TimeControl "180+1"]
[Date "2022.05.31"]
[WhiteClock "0:00:09"]
[BlackClock "0:00:03"]

1. e4 {[%clk 0:02:46]}  c5 {[%clk 0:02:58]} 2. c3 {[%clk 0:02:46]}  e6 {[%clk 0:02:49]} 3. d4 {[%clk 0:02:35]}  d5 {[%clk 0:02:47]} 4. e5 {[%clk 0:02:30]}  Nc6 {[%clk 0:02:46]} 5. Nf3 {[%clk 0:02:30]}  Qb6 {[%clk 0:02:46]} 6. Bd3 {[%clk 0:02:26]}  Bd7 {[%clk 0:02:44]} 7. O-O {[%clk 0:02:26]}  cxd4 {[%clk 0:02:44]} 8. a3 {[%clk 0:02:14]}  Nh6 {[%clk 0:02:37]} 9. b4 {[%clk 0:02:11]}  dxc3 {[%clk 0:02:34]} 10. Nxc3 {[%clk 0:02:10]}  Rc8 {[%clk 0:02:30]} 11. Be3 {[%clk 0:01:52]}  Qd8 {[%clk 0:02:27]} 12. Nb5 {[%clk 0:01:50]}  a6 {[%clk 0:02:25]} 13. Bxh6 {[%clk 0:01:41]}  gxh6 {[%clk 0:02:21]} 14. Nd6+ {[%clk 0:01:37]}  Bxd6 {[%clk 0:02:21]} 15. exd6 {[%clk 0:01:38]}  Qf6 {[%clk 0:02:19]} 16. b5 {[%clk 0:01:32]}  axb5 {[%clk 0:02:17]} 17. Bxb5 {[%clk 0:01:32]}  Qf4 {[%clk 0:02:18]} 18. Re1 {[%clk 0:01:18]}  Qxd6 {[%clk 0:02:17]} 19. Qd2 {[%clk 0:01:15]}  O-O {[%clk 0:02:08]} 20. Qxh6 {[%clk 0:01:13]}  f6 {[%clk 0:02:09]} 21. Bxc6 {[%clk 0:01:09]}  bxc6 {[%clk 0:02:06]} 22. a4 {[%clk 0:01:04]}  Rf7 {[%clk 0:01:57]} 23. a5 {[%clk 0:01:03]}  c5 {[%clk 0:01:53]} 24. Reb1 {[%clk 0:00:59]}  Ra8 {[%clk 0:01:46]} 25. Qc1 {[%clk 0:00:57]}  c4 {[%clk 0:01:29]} 26. Rb7 {[%clk 0:00:35]}  Bc8 {[%clk 0:01:12]} 27. Rxf7 {[%clk 0:00:32]}  Kxf7 {[%clk 0:01:13]} 28. Qh6 {[%clk 0:00:32]}  Qf8 {[%clk 0:01:02]} 29. Qxh7+ {[%clk 0:00:31]}  Qg7 {[%clk 0:01:01]} 30. Qb1 {[%clk 0:00:25]}  Kg8 {[%clk 0:00:50]} 31. Qb6 {[%clk 0:00:24]}  Qa7 {[%clk 0:00:42]} 32. Qd8+ {[%clk 0:00:23]}  Kf7 {[%clk 0:00:41]} 33. Qh8 {[%clk 0:00:21]}  Qe7 {[%clk 0:00:41]} 34. Qh7+ {[%clk 0:00:20]}  Ke8 {[%clk 0:00:41]} 35. Qg8+ {[%clk 0:00:20]}  Kd7 {[%clk 0:00:41]} 36. Nd4 {[%clk 0:00:17]}  Bb7 {[%clk 0:00:26]} 37. Qg4 {[%clk 0:00:17]}  f5 {[%clk 0:00:20]} 38. Qf4 {[%clk 0:00:15]}  Qd6 {[%clk 0:00:20]} 39. Qg5 {[%clk 0:00:16]}  Bc8 {[%clk 0:00:17]} 40. Qg7+ {[%clk 0:00:15]}  Qe7 {[%clk 0:00:17]} 41. Qe5 {[%clk 0:00:14]}  Qd6 {[%clk 0:00:18]} 42. Qg7+ {[%clk 0:00:15]}  Qe7 {[%clk 0:00:18]} 43. Qe5 {[%clk 0:00:15]}  Bb7 {[%clk 0:00:03]} 44. Nb5 {[%clk 0:00:14]}  Kc6 {[%clk 0:00:02]} 45. Nd4+ {[%clk 0:00:14]}  Kd7 {[%clk 0:00:02]} 46. Nb5 {[%clk 0:00:14]}  Kc6 {[%clk 0:00:01]} 47. Rb1 {[%clk 0:00:14]}  Ba6 {[%clk 0:00:01]} 48. Nd4+ {[%clk 0:00:14]}  Kd7 {[%clk 0:00:02]} 49. Rb6 {[%clk 0:00:14]}  Bc8 {[%clk 0:00:02]} 50. Rxe6 {[%clk 0:00:13]}  Qb4 {[%clk 0:00:02]} 51. Qxd5+ {[%clk 0:00:13]}  Kc7 {[%clk 0:00:03]} 52. Rc6+ {[%clk 0:00:12]}  Kb8 {[%clk 0:00:03]} 53. Rb6+ {[%clk 0:00:13]}  Qxb6 {[%clk 0:00:03]} 54. Nc6+ {[%clk 0:00:11]}  Kb7 {[%clk 0:00:01]} 55. Nd8+ {[%clk 0:00:11]}  Kc7 {[%clk 0:00:02]} 56. axb6+ {[%clk 0:00:09]}  Kb8 {[%clk 0:00:03]} 57. Qd6# {[%clk 0:00:09]} 1-0


[Site "https://www.chess.com"]

[Event "Titled Tuesday Blitz May 31 Early 2022"]
[White "Harvey, Marcus R"]
[Black "Costachi, Mihnea"]
[WhiteFideId "400092"]
[BlackFideId "1217518"]
[WhiteElo "2485"]
[BlackElo "2476"]
[Result "0-1"]
[Round "06"]
[TimeControl "180+1"]
[Date "2022.05.31"]
[WhiteClock "0:00:05"]
[BlackClock "0:01:35"]

1. d4 {[%clk 0:02:59]}  d5 {[%clk 0:02:57]} 2. c4 {[%clk 0:02:55]}  c6 {[%clk 0:02:57]} 3. Nf3 {[%clk 0:02:55]}  Nf6 {[%clk 0:02:57]} 4. g3 {[%clk 0:02:54]}  g6 {[%clk 0:02:57]} 5. Bg2 {[%clk 0:02:53]}  Bg7 {[%clk 0:02:57]} 6. O-O {[%clk 0:02:54]}  O-O {[%clk 0:02:58]} 7. Ne5 {[%clk 0:02:52]}  Ng4 {[%clk 0:02:56]} 8. Nxg4 {[%clk 0:02:51]}  Bxg4 {[%clk 0:02:56]} 9. cxd5 {[%clk 0:02:48]}  cxd5 {[%clk 0:02:57]} 10. Nc3 {[%clk 0:02:48]}  Nc6 {[%clk 0:02:55]} 11. Be3 {[%clk 0:02:48]}  Be6 {[%clk 0:02:51]} 12. Qd2 {[%clk 0:02:48]}  Na5 {[%clk 0:02:50]} 13. b3 {[%clk 0:02:48]}  b6 {[%clk 0:02:41]} 14. Rac1 {[%clk 0:02:47]}  Qd7 {[%clk 0:02:42]} 15. Bh6 {[%clk 0:02:46]}  Rfc8 {[%clk 0:02:39]} 16. Bxg7 {[%clk 0:02:46]}  Kxg7 {[%clk 0:02:40]} 17. Rc2 {[%clk 0:02:44]}  Nc6 {[%clk 0:02:30]} 18. Rfc1 {[%clk 0:02:42]}  Nb4 {[%clk 0:02:30]} 19. Rb2 {[%clk 0:02:42]}  Rc7 {[%clk 0:02:21]} 20. a3 {[%clk 0:02:42]}  Na6 {[%clk 0:02:19]} 21. Qd3 {[%clk 0:02:34]}  Rac8 {[%clk 0:02:19]} 22. Rbc2 {[%clk 0:02:32]}  Bf5 {[%clk 0:02:09]} 23. e4 {[%clk 0:02:31]}  dxe4 {[%clk 0:02:09]} 24. Qxa6 {[%clk 0:02:27]}  e3 {[%clk 0:02:09]} 25. fxe3 {[%clk 0:01:50]}  Bxc2 {[%clk 0:02:08]} 26. Nd5 {[%clk 0:01:48]}  Rc6 {[%clk 0:01:45]} 27. Nb4 {[%clk 0:00:37]}  Rc3 {[%clk 0:01:42]} 28. Rf1 {[%clk 0:00:17]}  Bxb3 {[%clk 0:01:37]} 29. Rf2 {[%clk 0:00:13]}  Bc4 {[%clk 0:01:35]} 30. Qb7 {[%clk 0:00:05]}  Rc1+ {[%clk 0:01:35]} 31. Rf1 {[%clk 0:00:05]}  Rxf1+ {[%clk 0:01:35]} 0-1


[Site "https://www.chess.com"]

[Event "Titled Tuesday Blitz May 31 Early 2022"]
[White "Ider, Borya"]
[Black "Girsh, Daniel"]
[WhiteFideId "4901134"]
[BlackFideId "30949190"]
[WhiteElo "2512"]
[BlackElo "2468"]
[Result "1-0"]
[Round "06"]
[TimeControl "180+1"]
[Date "2022.05.31"]
[WhiteClock "0:01:08"]
[BlackClock "0:01:05"]

1. Nf3 {[%clk 0:03:00]}  d5 {[%clk 0:02:59]} 2. g3 {[%clk 0:03:01]}  Nf6 {[%clk 0:02:59]} 3. Bg2 {[%clk 0:03:01]}  e6 {[%clk 0:02:59]} 4. d4 {[%clk 0:03:02]}  Be7 {[%clk 0:03:00]} 5. O-O {[%clk 0:03:03]}  O-O {[%clk 0:03:00]} 6. c4 {[%clk 0:03:03]}  dxc4 {[%clk 0:03:00]} 7. Ne5 {[%clk 0:03:03]}  Nc6 {[%clk 0:02:59]} 8. Bxc6 {[%clk 0:03:04]}  bxc6 {[%clk 0:02:59]} 9. Nxc6 {[%clk 0:03:05]}  Qd7 {[%clk 0:02:59]} 10. Nxe7+ {[%clk 0:03:05]}  Qxe7 {[%clk 0:03:00]} 11. Qa4 {[%clk 0:03:06]}  e5 {[%clk 0:02:59]} 12. dxe5 {[%clk 0:03:06]}  Qxe5 {[%clk 0:02:59]} 13. Qxc4 {[%clk 0:03:07]}  Be6 {[%clk 0:02:59]} 14. Qd3 {[%clk 0:03:08]}  Rfd8 {[%clk 0:02:57]} 15. Qe3 {[%clk 0:03:08]}  Qh5 {[%clk 0:02:57]} 16. f3 {[%clk 0:03:08]}  Re8 {[%clk 0:02:56]} 17. Qg5 {[%clk 0:03:04]}  Qh3 {[%clk 0:02:53]} 18. Nc3 {[%clk 0:03:04]}  h6 {[%clk 0:02:51]} 19. Qc5 {[%clk 0:03:03]}  Nh5 {[%clk 0:02:37]} 20. Qf2 {[%clk 0:02:56]}  Nf6 {[%clk 0:02:29]} 21. e4 {[%clk 0:02:55]}  Rad8 {[%clk 0:02:24]} 22. Bf4 {[%clk 0:02:50]}  Nh5 {[%clk 0:02:20]} 23. Bxc7 {[%clk 0:02:46]}  Rc8 {[%clk 0:02:18]} 24. Bd6 {[%clk 0:02:46]}  Bc4 {[%clk 0:02:16]} 25. Rfd1 {[%clk 0:02:45]}  Nf6 {[%clk 0:02:07]} 26. Rd4 {[%clk 0:02:44]}  Ba6 {[%clk 0:02:02]} 27. Rad1 {[%clk 0:02:44]}  h5 {[%clk 0:01:57]} 28. Bf4 {[%clk 0:02:24]}  h4 {[%clk 0:01:52]} 29. Bg5 {[%clk 0:02:22]}  Nh7 {[%clk 0:01:43]} 30. Bd8 {[%clk 0:02:10]}  hxg3 {[%clk 0:01:39]} 31. Qxg3 {[%clk 0:02:09]}  Qh6 {[%clk 0:01:36]} 32. f4 {[%clk 0:01:55]}  Qh5 {[%clk 0:01:30]} 33. Rd5 {[%clk 0:01:48]}  f5 {[%clk 0:01:20]} 34. Rxf5 {[%clk 0:01:44]}  Qh6 {[%clk 0:01:20]} 35. Rfd5 {[%clk 0:01:31]}  Rcxd8 {[%clk 0:01:20]} 36. Rxd8 {[%clk 0:01:31]}  Qb6+ {[%clk 0:01:18]} 37. R8d4 {[%clk 0:01:31]}  Rd8 {[%clk 0:01:17]} 38. Qf2 {[%clk 0:01:30]}  Rxd4 {[%clk 0:01:15]} 39. Rxd4 {[%clk 0:01:26]}  Nf6 {[%clk 0:01:13]} 40. Nd5 {[%clk 0:01:24]}  Nxd5 {[%clk 0:01:07]} 41. Rxd5 {[%clk 0:01:24]}  Qg6+ {[%clk 0:01:07]} 42. Qg2 {[%clk 0:01:16]}  Qb6+ {[%clk 0:01:07]} 43. Kh1 {[%clk 0:01:15]}  Bb7 {[%clk 0:01:07]} 44. Rd7 {[%clk 0:01:10]}  g6 {[%clk 0:01:05]} 45. Rxb7 {[%clk 0:01:09]}  Qxb7 {[%clk 0:01:05]} 46. Qxg6+ {[%clk 0:01:09]}  Kh8 {[%clk 0:01:05]} 47. Qh5+ {[%clk 0:01:08]}  Kg8 {[%clk 0:01:05]} 48. Qd5+ {[%clk 0:01:08]} 1-0


[Site "https://www.chess.com"]

[Event "Titled Tuesday Blitz May 31 Early 2022"]
[White "Kamsky, Gata"]
[Black "Melikyan, Gnel"]
[WhiteFideId "2000024"]
[BlackFideId "54109990"]
[WhiteElo "2645"]
[BlackElo "1772"]
[Result "1-0"]
[Round "06"]
[TimeControl "180+1"]
[Date "2022.05.31"]
[WhiteClock "0:00:16"]
[BlackClock "0:00:06"]

1. e4 {[%clk 0:03:00]}  c5 {[%clk 0:02:57]} 2. Nf3 {[%clk 0:02:59]}  Nc6 {[%clk 0:02:57]} 3. Bb5 {[%clk 0:02:58]}  g6 {[%clk 0:02:56]} 4. O-O {[%clk 0:02:54]}  Bg7 {[%clk 0:02:55]} 5. Bxc6 {[%clk 0:02:53]}  dxc6 {[%clk 0:02:54]} 6. h3 {[%clk 0:02:51]}  Nf6 {[%clk 0:02:52]} 7. Nc3 {[%clk 0:02:48]}  O-O {[%clk 0:02:46]} 8. d3 {[%clk 0:02:48]}  Nd7 {[%clk 0:02:37]} 9. Be3 {[%clk 0:02:41]}  Re8 {[%clk 0:02:21]} 10. a4 {[%clk 0:02:30]}  a5 {[%clk 0:02:00]} 11. Nd2 {[%clk 0:02:22]}  b6 {[%clk 0:01:54]} 12. f4 {[%clk 0:02:20]}  e6 {[%clk 0:01:43]} 13. e5 {[%clk 0:02:18]}  f5 {[%clk 0:01:31]} 14. Nf3 {[%clk 0:02:04]}  Nf8 {[%clk 0:01:15]} 15. b3 {[%clk 0:02:02]}  Ra7 {[%clk 0:01:08]} 16. Qe1 {[%clk 0:02:00]}  h6 {[%clk 0:00:53]} 17. Kh1 {[%clk 0:01:57]}  Kh7 {[%clk 0:00:47]} 18. Qe2 {[%clk 0:01:53]}  Bh8 {[%clk 0:00:36]} 19. h4 {[%clk 0:01:40]}  h5 {[%clk 0:00:31]} 20. Nd1 {[%clk 0:01:36]}  Kg8 {[%clk 0:00:25]} 21. Nb2 {[%clk 0:01:36]}  Ba6 {[%clk 0:00:20]} 22. Qf2 {[%clk 0:01:34]}  Rd7 {[%clk 0:00:19]} 23. Rfd1 {[%clk 0:01:33]}  Rd5 {[%clk 0:00:17]} 24. Nc4 {[%clk 0:01:18]}  Re7 {[%clk 0:00:13]} 25. Rab1 {[%clk 0:01:15]}  Red7 {[%clk 0:00:11]} 26. Nd6 {[%clk 0:01:13]}  Bg7 {[%clk 0:00:08]} 27. c4 {[%clk 0:01:10]}  R5xd6 {[%clk 0:00:08]} 28. exd6 {[%clk 0:01:11]}  Rxd6 {[%clk 0:00:08]} 29. Qe2 {[%clk 0:01:00]}  Nd7 {[%clk 0:00:08]} 30. Rd2 {[%clk 0:00:47]}  Nf6 {[%clk 0:00:07]} 31. Rbd1 {[%clk 0:00:43]}  Ng4 {[%clk 0:00:07]} 32. Bg1 {[%clk 0:00:43]}  Bd4 {[%clk 0:00:07]} 33. Re1 {[%clk 0:00:40]}  Bc8 {[%clk 0:00:07]} 34. g3 {[%clk 0:00:39]}  Kg7 {[%clk 0:00:06]} 35. Rdd1 {[%clk 0:00:36]}  Qf6 {[%clk 0:00:06]} 36. Bxd4 {[%clk 0:00:33]}  cxd4 {[%clk 0:00:06]} 37. Qd2 {[%clk 0:00:34]}  c5 {[%clk 0:00:06]} 38. Ne5 {[%clk 0:00:33]}  Bb7+ {[%clk 0:00:06]} 39. Kg1 {[%clk 0:00:33]}  Ne3 {[%clk 0:00:06]} 40. Rxe3 {[%clk 0:00:33]}  dxe3 {[%clk 0:00:07]} 41. Qxe3 {[%clk 0:00:33]}  Rd4 {[%clk 0:00:07]} 42. Kf2 {[%clk 0:00:33]}  Qd8 {[%clk 0:00:07]} 43. Ke1 {[%clk 0:00:32]}  Ba8 {[%clk 0:00:08]} 44. Kd2 {[%clk 0:00:32]}  Qc7 {[%clk 0:00:08]} 45. Kc3 {[%clk 0:00:33]}  Qb7 {[%clk 0:00:08]} 46. Re1 {[%clk 0:00:32]}  Qg2 {[%clk 0:00:08]} 47. Re2 {[%clk 0:00:31]}  Qb7 {[%clk 0:00:07]} 48. Rf2 {[%clk 0:00:29]}  Qe7 {[%clk 0:00:07]} 49. Qe1 {[%clk 0:00:21]}  Bb7 {[%clk 0:00:07]} 50. Kc2 {[%clk 0:00:21]}  Rd6 {[%clk 0:00:07]} 51. Re2 {[%clk 0:00:20]}  Bc8 {[%clk 0:00:07]} 52. Qc3 {[%clk 0:00:18]}  Qf6 {[%clk 0:00:07]} 53. Rd2 {[%clk 0:00:18]}  Bb7 {[%clk 0:00:07]} 54. d4 {[%clk 0:00:18]}  Be4+ {[%clk 0:00:07]} 55. Kc1 {[%clk 0:00:18]}  Kh7 {[%clk 0:00:07]} 56. dxc5 {[%clk 0:00:18]}  Rxd2 {[%clk 0:00:07]} 57. Kxd2 {[%clk 0:00:17]}  Qd8+ {[%clk 0:00:07]} 58. Kc1 {[%clk 0:00:17]}  bxc5 {[%clk 0:00:07]} 59. Qd2 {[%clk 0:00:17]}  Qc7 {[%clk 0:00:06]} 60. Qd7+ {[%clk 0:00:16]}  Qxd7 {[%clk 0:00:06]} 61. Nxd7 {[%clk 0:00:16]} 1-0


[Site "https://www.chess.com"]